[Event "Titled Tuesday Blitz April 11 Early 2023"]
[White "Sliwicki, Damian"]
[Black "Makhmudov, Shukhrat"]
[WhiteFideId "1127128"]
[BlackFideId "14200775"]
[WhiteElo "2030"]
[BlackElo "2135"]
[Result "0-1"]
[Round "09"]
[TimeControl "180+2"]
[Date "2023.04.11"]
[WhiteClock "0:00:22"]
[BlackClock "0:00:37"]

1. e4 {[%clk 0:03:00]}  e5 {[%clk 0:02:59]} 2. Nf3 {[%clk 0:02:58]}  Nc6 {[%clk 0:02:56]} 3. d4 {[%clk 0:02:58]}  exd4 {[%clk 0:02:53]} 4. Bc4 {[%clk 0:02:58]}  Nf6 {[%clk 0:02:50]} 5. O-O {[%clk 0:02:56]}  Nxe4 {[%clk 0:02:50]} 6. Re1 {[%clk 0:02:56]}  d5 {[%clk 0:02:50]} 7. Bxd5 {[%clk 0:02:55]}  Qxd5 {[%clk 0:02:50]} 8. Nc3 {[%clk 0:02:56]}  Qa5 {[%clk 0:02:50]} 9. Nxe4 {[%clk 0:02:56]}  Be6 {[%clk 0:02:49]} 10. Bd2 {[%clk 0:02:55]}  Qf5 {[%clk 0:02:48]} 11. Bg5 {[%clk 0:02:50]}  h6 {[%clk 0:02:45]} 12. Bh4 {[%clk 0:02:00]}  Bb4 {[%clk 0:02:03]} 13. Nxd4 {[%clk 0:01:46]}  Nxd4 {[%clk 0:01:16]} 14. Qxd4 {[%clk 0:01:47]}  Bxe1 {[%clk 0:01:16]} 15. Qxg7 {[%clk 0:01:43]}  Qxe4 {[%clk 0:00:58]} 16. Qxh8+ {[%clk 0:01:35]}  Kd7 {[%clk 0:00:57]} 17. Qxa8 {[%clk 0:01:25]}  Bd5 {[%clk 0:00:45]} 18. Qd8+ {[%clk 0:01:16]}  Kc6 {[%clk 0:00:45]} 19. Qf6+ {[%clk 0:01:15]}  Kb5 {[%clk 0:00:45]} 20. b3 {[%clk 0:00:22]}  Qxg2# {[%clk 0:00:37]} 0-1


[Site "https://www.chess.com"]

[Event "Titled Tuesday Blitz April 11 Early 2023"]
[White "Buscar, Michael"]
[Black "Albuquerque Junior,Wellington S."]
[WhiteFideId "2603616"]
[BlackFideId "2151480"]
[WhiteElo "2010"]
[BlackElo "2109"]
[Result "1/2-1/2"]
[Round "09"]
[TimeControl "180+2"]
[Date "2023.04.11"]
[WhiteClock "0:01:08"]
[BlackClock "0:00:18"]

1. d4 {[%clk 0:02:57]}  Nf6 {[%clk 0:02:59]} 2. c4 {[%clk 0:02:57]}  c5 {[%clk 0:03:00]} 3. d5 {[%clk 0:02:55]}  b5 {[%clk 0:03:00]} 4. cxb5 {[%clk 0:02:55]}  a6 {[%clk 0:03:00]} 5. bxa6 {[%clk 0:02:55]}  g6 {[%clk 0:03:00]} 6. g3 {[%clk 0:02:55]}  Bg7 {[%clk 0:03:00]} 7. Bg2 {[%clk 0:02:55]}  d6 {[%clk 0:03:01]} 8. Nf3 {[%clk 0:02:55]}  O-O {[%clk 0:03:01]} 9. Nfd2 {[%clk 0:02:55]}  Qa5 {[%clk 0:02:58]} 10. O-O {[%clk 0:02:52]}  Nxa6 {[%clk 0:02:54]} 11. Nc4 {[%clk 0:02:48]}  Qc7 {[%clk 0:02:43]} 12. Bd2 {[%clk 0:02:42]}  Bf5 {[%clk 0:02:36]} 13. Bc3 {[%clk 0:02:40]}  Nb4 {[%clk 0:02:27]} 14. Bxb4 {[%clk 0:02:23]}  cxb4 {[%clk 0:02:28]} 15. Nbd2 {[%clk 0:02:23]}  Rfc8 {[%clk 0:02:09]} 16. Qb3 {[%clk 0:02:17]}  Bd7 {[%clk 0:01:59]} 17. Qe3 {[%clk 0:02:02]}  Ng4 {[%clk 0:01:38]} 18. Qxe7 {[%clk 0:01:59]}  Re8 {[%clk 0:01:39]} 19. Qxd6 {[%clk 0:02:00]}  Qxd6 {[%clk 0:01:38]} 20. Nxd6 {[%clk 0:01:59]}  Rxe2 {[%clk 0:01:39]} 21. N6c4 {[%clk 0:01:48]}  Bd4 {[%clk 0:01:20]} 22. Bf3 {[%clk 0:01:30]}  Rxf2 {[%clk 0:01:14]} 23. Rxf2 {[%clk 0:01:27]}  Nxf2 {[%clk 0:01:10]} 24. Nb3 {[%clk 0:01:13]}  Ba7 {[%clk 0:00:59]} 25. Kg2 {[%clk 0:01:12]}  Bh3+ {[%clk 0:00:58]} 26. Kg1 {[%clk 0:01:10]}  Ng4+ {[%clk 0:00:26]} 27. Kh1 {[%clk 0:01:08]}  Nf2+ {[%clk 0:00:26]} 28. Kg1 {[%clk 0:01:08]}  Ne4+ {[%clk 0:00:18]} 29. Kh1 {[%clk 0:01:07]}  Nf2+ {[%clk 0:00:18]} 30. Kg1 {[%clk 0:01:08]} 1/2-1/2


[Site "https://www.chess.com"]

[Event "Titled Tuesday Blitz April 11 Early 2023"]
[White "Sohier, Julien"]
[Black "KorolDimitriy75"]
[WhiteFideId "645346"]
[WhiteElo "2209"]
[BlackElo "2352"]
[Result "0-1"]
[Round "09"]
[TimeControl "180+2"]
[Date "2023.04.11"]
[WhiteClock "0:01:09"]
[BlackClock "0:00:14"]

1. e4 {[%clk 0:03:00]}  c5 {[%clk 0:03:00]} 2. Nc3 {[%clk 0:02:56]}  g6 {[%clk 0:02:59]} 3. d4 {[%clk 0:02:55]}  cxd4 {[%clk 0:02:58]} 4. Qxd4 {[%clk 0:02:56]}  Nf6 {[%clk 0:02:59]} 5. Be3 {[%clk 0:02:55]}  Nc6 {[%clk 0:02:58]} 6. Qd2 {[%clk 0:02:55]}  Bg7 {[%clk 0:02:57]} 7. f3 {[%clk 0:02:54]}  O-O {[%clk 0:02:56]} 8. O-O-O {[%clk 0:02:55]}  Qa5 {[%clk 0:02:43]} 9. Kb1 {[%clk 0:02:51]}  d6 {[%clk 0:02:39]} 10. h4 {[%clk 0:02:50]}  Be6 {[%clk 0:02:38]} 11. Nge2 {[%clk 0:02:47]}  Rfc8 {[%clk 0:02:21]} 12. Nf4 {[%clk 0:02:46]}  Ne5 {[%clk 0:02:08]} 13. Nxe6 {[%clk 0:02:46]}  fxe6 {[%clk 0:02:07]} 14. Bd4 {[%clk 0:02:42]}  Rab8 {[%clk 0:01:37]} 15. Nd5 {[%clk 0:02:40]}  Qxd2 {[%clk 0:01:35]} 16. Nxf6+ {[%clk 0:02:39]}  Bxf6 {[%clk 0:01:34]} 17. Rxd2 {[%clk 0:02:39]}  b6 {[%clk 0:01:21]} 18. f4 {[%clk 0:02:35]}  Ng4 {[%clk 0:01:14]} 19. Bxf6 {[%clk 0:02:33]}  Nxf6 {[%clk 0:01:14]} 20. Bd3 {[%clk 0:02:32]}  Rc5 {[%clk 0:01:08]} 21. g3 {[%clk 0:02:29]}  e5 {[%clk 0:01:00]} 22. b4 {[%clk 0:02:13]}  Rc3 {[%clk 0:00:51]} 23. fxe5 {[%clk 0:02:11]}  dxe5 {[%clk 0:00:52]} 24. Kb2 {[%clk 0:02:11]}  Rbc8 {[%clk 0:00:51]} 25. a3 {[%clk 0:02:04]}  Kg7 {[%clk 0:00:51]} 26. Rg1 {[%clk 0:02:00]}  h5 {[%clk 0:00:49]} 27. Rf2 {[%clk 0:01:56]}  R8c7 {[%clk 0:00:43]} 28. Rgf1 {[%clk 0:01:55]}  a5 {[%clk 0:00:38]} 29. bxa5 {[%clk 0:01:53]}  bxa5 {[%clk 0:00:39]} 30. a4 {[%clk 0:01:52]}  R3c5 {[%clk 0:00:33]} 31. Rb1 {[%clk 0:01:50]}  Rd7 {[%clk 0:00:26]} 32. Ka2 {[%clk 0:01:45]}  Rd4 {[%clk 0:00:26]} 33. Ka3 {[%clk 0:01:33]}  Nxe4 {[%clk 0:00:26]} 34. Bxe4 {[%clk 0:01:31]}  Rxe4 {[%clk 0:00:27]} 35. Rbf1 {[%clk 0:01:30]}  Rc3+ {[%clk 0:00:20]} 36. Kb2 {[%clk 0:01:29]}  Rxg3 {[%clk 0:00:21]} 37. Rf7+ {[%clk 0:01:30]}  Kh6 {[%clk 0:00:21]} 38. Rxe7 {[%clk 0:01:30]}  Rxh4 {[%clk 0:00:21]} 39. Rff7 {[%clk 0:01:30]}  Rxa4 {[%clk 0:00:21]} 40. Rxe5 {[%clk 0:01:29]}  h4 {[%clk 0:00:18]} 41. Rf8 {[%clk 0:01:27]}  g5 {[%clk 0:00:17]} 42. Ra8 {[%clk 0:01:21]}  h3 {[%clk 0:00:17]} 43. Re6+ {[%clk 0:01:18]}  Kh5 {[%clk 0:00:16]} 44. Rh8+ {[%clk 0:01:16]}  Kg4 {[%clk 0:00:16]} 45. Reh6 {[%clk 0:01:17]}  Rb4+ {[%clk 0:00:15]} 46. Kc1 {[%clk 0:01:16]}  a4 {[%clk 0:00:15]} 47. Ra6 {[%clk 0:01:15]}  a3 {[%clk 0:00:15]} 48. Ra5 {[%clk 0:01:11]}  Rf4 {[%clk 0:00:14]} 49. Rg8 {[%clk 0:01:09]}  Rf5 {[%clk 0:00:14]} 0-1


[Site "https://www.chess.com"]

[Event "Titled Tuesday Blitz April 11 Early 2023"]
[White "Palencia Morales, Wilson Guillermo"]
[Black "Necula, Iulian"]
[WhiteFideId "4401859"]
[BlackFideId "1232380"]
[WhiteElo "2139"]
[BlackElo "1790"]
[Result "1-0"]
[Round "09"]
[TimeControl "180+2"]
[Date "2023.04.11"]
[WhiteClock "0:02:23"]
[BlackClock "0:02:07"]

1. e4 {[%clk 0:03:00]}  d6 {[%clk 0:03:00]} 2. d4 {[%clk 0:03:00]}  Nf6 {[%clk 0:02:58]} 3. Nc3 {[%clk 0:03:01]}  e5 {[%clk 0:02:58]} 4. dxe5 {[%clk 0:03:01]}  dxe5 {[%clk 0:02:59]} 5. Qxd8+ {[%clk 0:03:01]}  Kxd8 {[%clk 0:03:00]} 6. Bc4 {[%clk 0:03:02]}  Be6 {[%clk 0:03:00]} 7. Bxe6 {[%clk 0:03:01]}  fxe6 {[%clk 0:03:01]} 8. f3 {[%clk 0:03:02]}  Bd6 {[%clk 0:03:00]} 9. Be3 {[%clk 0:03:01]}  Nbd7 {[%clk 0:03:00]} 10. O-O-O {[%clk 0:03:01]}  a6 {[%clk 0:03:00]} 11. Nh3 {[%clk 0:03:01]}  Ke7 {[%clk 0:02:58]} 12. g3 {[%clk 0:02:54]}  h6 {[%clk 0:02:58]} 13. f4 {[%clk 0:02:54]}  Ng4 {[%clk 0:02:51]} 14. Kd2 {[%clk 0:02:53]}  Nxe3 {[%clk 0:02:50]} 15. Kxe3 {[%clk 0:02:54]}  Bc5+ {[%clk 0:02:34]} 16. Ke2 {[%clk 0:02:52]}  Bd4 {[%clk 0:02:35]} 17. f5 {[%clk 0:02:40]}  exf5 {[%clk 0:02:22]} 18. Nd5+ {[%clk 0:02:39]}  Kd6 {[%clk 0:02:13]} 19. c3 {[%clk 0:02:38]}  c6 {[%clk 0:02:08]} 20. cxd4 {[%clk 0:02:34]}  cxd5 {[%clk 0:02:07]} 21. dxe5+ {[%clk 0:02:35]}  Kxe5 {[%clk 0:02:07]} 22. Rxd5+ {[%clk 0:02:33]}  Kxe4 {[%clk 0:02:07]} 23. Rhd1 {[%clk 0:02:23]} 1-0


[Site "https://www.chess.com"]

[Event "Titled Tuesday Blitz April 11 Early 2023"]
[White "Szyszylo, Rafal"]
[Black "Nugumanov, Bakhtiyar"]
[WhiteFideId "1109626"]
[BlackFideId "13701797"]
[WhiteElo "1951"]
[BlackElo "2209"]
[Result "0-1"]
[Round "09"]
[TimeControl "180+2"]
[Date "2023.04.11"]
[WhiteClock "0:00:07"]
[BlackClock "0:00:30"]

1. e4 {[%clk 0:02:53]}  e6 {[%clk 0:02:59]} 2. d4 {[%clk 0:02:52]}  d5 {[%clk 0:03:00]} 3. e5 {[%clk 0:02:51]}  c5 {[%clk 0:02:59]} 4. c3 {[%clk 0:02:52]}  Nc6 {[%clk 0:03:00]} 5. Nf3 {[%clk 0:02:51]}  Bd7 {[%clk 0:03:01]} 6. Be2 {[%clk 0:02:51]}  Nge7 {[%clk 0:03:01]} 7. Na3 {[%clk 0:02:48]}  cxd4 {[%clk 0:03:00]} 8. cxd4 {[%clk 0:02:48]}  Nf5 {[%clk 0:03:00]} 9. Nc2 {[%clk 0:02:48]}  Qb6 {[%clk 0:02:53]} 10. O-O {[%clk 0:02:47]}  Rc8 {[%clk 0:02:51]} 11. Rb1 {[%clk 0:02:33]}  Nb4 {[%clk 0:02:30]} 12. Nxb4 {[%clk 0:02:29]}  Bxb4 {[%clk 0:02:31]} 13. g4 {[%clk 0:02:02]}  Ne7 {[%clk 0:02:09]} 14. a3 {[%clk 0:02:01]}  Bxa3 {[%clk 0:02:07]} 15. Be3 {[%clk 0:01:08]}  Bb4 {[%clk 0:02:03]} 16. Qb3 {[%clk 0:00:58]}  O-O {[%clk 0:01:59]} 17. Bd3 {[%clk 0:00:55]}  a5 {[%clk 0:01:54]} 18. Ng5 {[%clk 0:00:50]}  h6 {[%clk 0:01:41]} 19. Nh7 {[%clk 0:00:50]}  Rfd8 {[%clk 0:01:35]} 20. Qd1 {[%clk 0:00:39]}  Bb5 {[%clk 0:01:23]} 21. Nf6+ {[%clk 0:00:16]}  gxf6 {[%clk 0:01:22]} 22. exf6 {[%clk 0:00:15]}  Ng6 {[%clk 0:01:16]} 23. Bxh6 {[%clk 0:00:11]}  Bxd3 {[%clk 0:00:50]} 24. Qxd3 {[%clk 0:00:12]}  e5 {[%clk 0:00:51]} 25. dxe5 {[%clk 0:00:11]}  Rc4 {[%clk 0:00:50]} 26. Qf5 {[%clk 0:00:11]}  Qd4 {[%clk 0:00:45]} 27. h3 {[%clk 0:00:11]}  Qxe5 {[%clk 0:00:45]} 28. Qf3 {[%clk 0:00:11]}  Nh4 {[%clk 0:00:39]} 29. Qg3 {[%clk 0:00:09]}  Qxg3+ {[%clk 0:00:33]} 30. fxg3 {[%clk 0:00:10]}  Ng6 {[%clk 0:00:34]} 31. Bg7 {[%clk 0:00:09]}  d4 {[%clk 0:00:33]} 32. Rbd1 {[%clk 0:00:09]}  d3 {[%clk 0:00:32]} 33. h4 {[%clk 0:00:09]}  Rc2 {[%clk 0:00:27]} 34. Rf3 {[%clk 0:00:09]}  Ne5 {[%clk 0:00:26]} 35. Re3 {[%clk 0:00:08]}  Bc5 {[%clk 0:00:27]} 36. Bh6 {[%clk 0:00:07]}  Bxe3+ {[%clk 0:00:28]} 37. Bxe3 {[%clk 0:00:08]}  Re2 {[%clk 0:00:28]} 38. Bf4 {[%clk 0:00:07]}  Nxg4 {[%clk 0:00:28]} 39. Kf1 {[%clk 0:00:08]}  Ne3+ {[%clk 0:00:27]} 40. Bxe3 {[%clk 0:00:08]}  Rxe3 {[%clk 0:00:28]} 41. Kf2 {[%clk 0:00:06]}  Re2+ {[%clk 0:00:29]} 42. Kf3 {[%clk 0:00:06]}  Rxb2 {[%clk 0:00:29]} 43. g4 {[%clk 0:00:06]}  d2 {[%clk 0:00:30]} 44. g5 {[%clk 0:00:06]}  Rc2 {[%clk 0:00:29]} 45. h5 {[%clk 0:00:05]}  Rc1 {[%clk 0:00:29]} 46. Ke2 {[%clk 0:00:05]}  Rxd1 {[%clk 0:00:29]} 47. Kxd1 {[%clk 0:00:06]}  a4 {[%clk 0:00:30]} 48. g6 {[%clk 0:00:07]}  a3 {[%clk 0:00:30]} 49. h6 {[%clk 0:00:07]}  fxg6 {[%clk 0:00:31]} 50. h7+ {[%clk 0:00:07]}  Kxh7 {[%clk 0:00:31]} 51. f7 {[%clk 0:00:07]}  a2 {[%clk 0:00:30]} 52. f8=Q {[%clk 0:00:08]}  a1=Q+ {[%clk 0:00:30]} 53. Ke2 {[%clk 0:00:07]}  d1=Q+ {[%clk 0:00:30]} 0-1


[Site "https://www.chess.com"]

[Event "Titled Tuesday Blitz April 11 Early 2023"]
[White "Kiseleva, Arina"]
[Black "Van Osch, Mees"]
[WhiteFideId "4164989"]
[BlackFideId "1035967"]
[WhiteElo "1708"]
[BlackElo "2324"]
[Result "0-1"]
[Round "09"]
[TimeControl "180+2"]
[Date "2023.04.11"]
[WhiteClock "0:00:01"]
[BlackClock "0:00:08"]

1. d4 {[%clk 0:03:00]}  d6 {[%clk 0:02:54]} 2. Nf3 {[%clk 0:02:57]}  Nf6 {[%clk 0:02:54]} 3. c4 {[%clk 0:02:55]}  c5 {[%clk 0:02:52]} 4. d5 {[%clk 0:02:52]}  b5 {[%clk 0:02:51]} 5. cxb5 {[%clk 0:02:49]}  a6 {[%clk 0:02:51]} 6. b6 {[%clk 0:02:48]}  g6 {[%clk 0:02:50]} 7. Nc3 {[%clk 0:02:48]}  Bg7 {[%clk 0:02:50]} 8. Nd2 {[%clk 0:02:44]}  e6 {[%clk 0:02:48]} 9. dxe6 {[%clk 0:02:35]}  Bxe6 {[%clk 0:02:48]} 10. e4 {[%clk 0:02:23]}  O-O {[%clk 0:02:46]} 11. Nc4 {[%clk 0:02:18]}  d5 {[%clk 0:02:41]} 12. exd5 {[%clk 0:02:17]}  Nxd5 {[%clk 0:02:41]} 13. Nxd5 {[%clk 0:02:16]}  Bxd5 {[%clk 0:02:36]} 14. Be3 {[%clk 0:02:11]}  Re8 {[%clk 0:02:31]} 15. Qc2 {[%clk 0:02:04]}  Nc6 {[%clk 0:02:29]} 16. O-O-O {[%clk 0:01:42]}  Nb4 {[%clk 0:02:12]} 17. Qb3 {[%clk 0:01:40]}  Qd7 {[%clk 0:01:26]} 18. Bxc5 {[%clk 0:01:34]}  a5 {[%clk 0:01:22]} 19. a4 {[%clk 0:01:07]}  Rac8 {[%clk 0:01:17]} 20. Bxb4 {[%clk 0:01:00]}  axb4 {[%clk 0:01:08]} 21. Qxb4 {[%clk 0:00:50]}  Qe6 {[%clk 0:00:47]} 22. b3 {[%clk 0:00:34]}  Bf8 {[%clk 0:00:35]} 23. Qc3 {[%clk 0:00:25]}  Bh6+ {[%clk 0:00:19]} 24. Kb1 {[%clk 0:00:23]}  Qf5+ {[%clk 0:00:19]} 25. Bd3 {[%clk 0:00:23]}  Qxf2 {[%clk 0:00:18]} 26. Rhf1 {[%clk 0:00:22]}  Qc5 {[%clk 0:00:12]} 27. Qf6 {[%clk 0:00:20]}  Bg7 {[%clk 0:00:11]} 28. Qf2 {[%clk 0:00:20]}  Bd4 {[%clk 0:00:09]} 29. Qc2 {[%clk 0:00:18]}  Qb4 {[%clk 0:00:08]} 30. Be2 {[%clk 0:00:15]}  Qc5 {[%clk 0:00:04]} 31. Rxd4 {[%clk 0:00:11]}  Qxd4 {[%clk 0:00:04]} 32. Rd1 {[%clk 0:00:11]}  Qc5 {[%clk 0:00:02]} 33. Bf3 {[%clk 0:00:09]}  Bxf3 {[%clk 0:00:02]} 34. gxf3 {[%clk 0:00:09]}  Rc6 {[%clk 0:00:03]} 35. b7 {[%clk 0:00:08]}  Rb8 {[%clk 0:00:02]} 36. Qd2 {[%clk 0:00:04]}  Rxb7 {[%clk 0:00:02]} 37. Ka2 {[%clk 0:00:05]}  Qf8 {[%clk 0:00:02]} 38. Qd8 {[%clk 0:00:04]}  Qxd8 {[%clk 0:00:02]} 39. Rxd8+ {[%clk 0:00:03]}  Kg7 {[%clk 0:00:03]} 40. Na5 {[%clk 0:00:04]}  Re6 {[%clk 0:00:04]} 41. Nxb7 {[%clk 0:00:03]}  Re2+ {[%clk 0:00:05]} 42. Ka3 {[%clk 0:00:03]}  Rxh2 {[%clk 0:00:05]} 43. a5 {[%clk 0:00:03]}  Rh1 {[%clk 0:00:06]} 44. Kb4 {[%clk 0:00:02]}  Ra1 {[%clk 0:00:06]} 45. Kb5 {[%clk 0:00:02]}  h5 {[%clk 0:00:07]} 46. b4 {[%clk 0:00:02]}  h4 {[%clk 0:00:08]} 47. Rd4 {[%clk 0:00:02]}  g5 {[%clk 0:00:08]} 48. a6 {[%clk 0:00:02]}  h3 {[%clk 0:00:08]} 49. Na5 {[%clk 0:00:02]}  h2 {[%clk 0:00:08]} 50. a7 {[%clk 0:00:01]}  h1=Q {[%clk 0:00:08]} 51. a8=Q {[%clk 0:00:02]}  Qf1+ {[%clk 0:00:09]} 52. Kb6 {[%clk 0:00:01]}  Qf2 {[%clk 0:00:08]} 53. Qd8 {[%clk 0:00:01]}  Rd1 {[%clk 0:00:08]} 0-1


[Site "https://www.chess.com"]

[Event "Titled Tuesday Blitz April 11 Early 2023"]
[White "Munro, Allan"]
[Black "Prudnykova, Olga"]
[WhiteFideId "7700245"]
[BlackFideId "14121093"]
[WhiteElo "2084"]
[BlackElo "2113"]
[Result "0-1"]
[Round "09"]
[TimeControl "180+2"]
[Date "2023.04.11"]
[WhiteClock "0:00:07"]
[BlackClock "0:00:07"]

1. d4 {[%clk 0:03:00]}  Nf6 {[%clk 0:02:59]} 2. Bg5 {[%clk 0:03:00]}  c5 {[%clk 0:02:58]} 3. d5 {[%clk 0:03:00]}  Ne4 {[%clk 0:02:56]} 4. h4 {[%clk 0:03:00]}  h6 {[%clk 0:02:55]} 5. Bf4 {[%clk 0:02:59]}  Qb6 {[%clk 0:02:23]} 6. Nd2 {[%clk 0:02:58]}  Nxd2 {[%clk 0:01:59]} 7. Bxd2 {[%clk 0:02:59]}  d6 {[%clk 0:01:58]} 8. e4 {[%clk 0:02:52]}  Nd7 {[%clk 0:01:55]} 9. a4 {[%clk 0:02:47]}  g6 {[%clk 0:01:51]} 10. Bc3 {[%clk 0:02:45]}  Nf6 {[%clk 0:01:50]} 11. a5 {[%clk 0:02:15]}  Qc7 {[%clk 0:01:48]} 12. Bb5+ {[%clk 0:02:08]}  Bd7 {[%clk 0:01:48]} 13. Qe2 {[%clk 0:02:07]}  Bg7 {[%clk 0:01:46]} 14. Nf3 {[%clk 0:01:50]}  O-O {[%clk 0:01:45]} 15. Bxd7 {[%clk 0:01:46]}  Qxd7 {[%clk 0:01:45]} 16. Nd2 {[%clk 0:01:45]}  b6 {[%clk 0:01:41]} 17. a6 {[%clk 0:01:40]}  b5 {[%clk 0:01:40]} 18. b3 {[%clk 0:01:31]}  Rab8 {[%clk 0:01:35]} 19. O-O {[%clk 0:01:30]}  h5 {[%clk 0:01:33]} 20. Bb2 {[%clk 0:01:18]}  Rb6 {[%clk 0:01:31]} 21. Ra5 {[%clk 0:01:13]}  Rfb8 {[%clk 0:01:23]} 22. Rfa1 {[%clk 0:01:12]}  Bh6 {[%clk 0:01:10]} 23. Nf1 {[%clk 0:01:05]}  Ng4 {[%clk 0:01:08]} 24. f3 {[%clk 0:00:57]}  Nf6 {[%clk 0:01:06]} 25. Kh2 {[%clk 0:00:44]}  Bg7 {[%clk 0:01:03]} 26. g3 {[%clk 0:00:43]}  Ng4+ {[%clk 0:00:56]} 27. fxg4 {[%clk 0:00:43]}  Bxb2 {[%clk 0:00:56]} 28. R1a2 {[%clk 0:00:43]}  Bc3 {[%clk 0:00:56]} 29. gxh5 {[%clk 0:00:42]}  gxh5 {[%clk 0:00:55]} 30. Qxh5 {[%clk 0:00:40]}  Bxa5 {[%clk 0:00:55]} 31. Rxa5 {[%clk 0:00:41]}  e6 {[%clk 0:00:48]} 32. Ne3 {[%clk 0:00:41]}  Qe7 {[%clk 0:00:40]} 33. Ra1 {[%clk 0:00:40]}  Qf6 {[%clk 0:00:36]} 34. Rf1 {[%clk 0:00:40]}  Qg6 {[%clk 0:00:36]} 35. Qf3 {[%clk 0:00:34]}  Rxa6 {[%clk 0:00:21]} 36. h5 {[%clk 0:00:34]}  Qg7 {[%clk 0:00:19]} 37. Ng4 {[%clk 0:00:34]}  Ra2 {[%clk 0:00:06]} 38. Rf2 {[%clk 0:00:29]}  b4 {[%clk 0:00:05]} 39. Qf4 {[%clk 0:00:16]}  Rd8 {[%clk 0:00:04]} 40. Nf6+ {[%clk 0:00:14]}  Kh8 {[%clk 0:00:04]} 41. h6 {[%clk 0:00:11]}  Qg6 {[%clk 0:00:03]} 42. dxe6 {[%clk 0:00:10]}  fxe6 {[%clk 0:00:03]} 43. Ng4 {[%clk 0:00:10]}  e5 {[%clk 0:00:03]} 44. Qf3 {[%clk 0:00:10]}  Rg8 {[%clk 0:00:03]} 45. Kh3 {[%clk 0:00:10]}  Qg5 {[%clk 0:00:03]} 46. Qf6+ {[%clk 0:00:09]}  Qxf6 {[%clk 0:00:03]} 47. Nxf6 {[%clk 0:00:10]}  Rf8 {[%clk 0:00:04]} 48. g4 {[%clk 0:00:10]}  Rxf6 {[%clk 0:00:04]} 49. Rxf6 {[%clk 0:00:09]}  Rxc2 {[%clk 0:00:04]} 50. Rxd6 {[%clk 0:00:10]}  c4 {[%clk 0:00:05]} 51. bxc4 {[%clk 0:00:10]}  Rxc4 {[%clk 0:00:05]} 52. g5 {[%clk 0:00:10]}  Rxe4 {[%clk 0:00:05]} 53. g6 {[%clk 0:00:10]}  Rd4 {[%clk 0:00:05]} 54. Ra6 {[%clk 0:00:08]}  Rd8 {[%clk 0:00:05]} 55. Rxa7 {[%clk 0:00:09]}  Rb8 {[%clk 0:00:05]} 56. Ra2 {[%clk 0:00:08]}  b3 {[%clk 0:00:06]} 57. Rb2 {[%clk 0:00:08]}  Rb6 {[%clk 0:00:06]} 58. g7+ {[%clk 0:00:06]}  Kh7 {[%clk 0:00:06]} 59. Rg2 {[%clk 0:00:07]}  Rxh6+ {[%clk 0:00:06]} 60. Kg4 {[%clk 0:00:06]}  Rg6+ {[%clk 0:00:06]} 61. Kf5 {[%clk 0:00:07]}  Rxg2 {[%clk 0:00:07]} 0-1


[Site "https://www.chess.com"]

[Event "Titled Tuesday Blitz April 11 Early 2023"]
[White "Kula, Robert"]
[Black "Cramling Bellon, Anna"]
[WhiteFideId "1101218"]
[BlackFideId "32009232"]
[WhiteElo "2180"]
[BlackElo "1972"]
[Result "1-0"]
[Round "09"]
[TimeControl "180+2"]
[Date "2023.04.11"]
[WhiteClock "0:01:33"]
[BlackClock "0:00:01"]

1. e4 {[%clk 0:03:00]}  c5 {[%clk 0:02:49]} 2. Nf3 {[%clk 0:03:00]}  e6 {[%clk 0:02:47]} 3. d4 {[%clk 0:03:00]}  cxd4 {[%clk 0:02:48]} 4. Nxd4 {[%clk 0:03:00]}  Nf6 {[%clk 0:02:47]} 5. Nc3 {[%clk 0:02:59]}  Nc6 {[%clk 0:02:47]} 6. Be3 {[%clk 0:02:57]}  Bb4 {[%clk 0:02:45]} 7. f3 {[%clk 0:02:55]}  d5 {[%clk 0:02:42]} 8. Bb5 {[%clk 0:02:51]}  Bd7 {[%clk 0:02:40]} 9. Bxc6 {[%clk 0:02:50]}  bxc6 {[%clk 0:02:39]} 10. e5 {[%clk 0:02:50]}  Ng8 {[%clk 0:02:26]} 11. a3 {[%clk 0:02:43]}  Bxc3+ {[%clk 0:02:15]} 12. bxc3 {[%clk 0:02:43]}  Qc7 {[%clk 0:02:09]} 13. f4 {[%clk 0:02:41]}  Ne7 {[%clk 0:01:56]} 14. Nb3 {[%clk 0:02:40]}  Nf5 {[%clk 0:01:15]} 15. Bf2 {[%clk 0:02:34]}  O-O {[%clk 0:00:57]} 16. O-O {[%clk 0:02:33]}  f6 {[%clk 0:00:57]} 17. Bd4 {[%clk 0:02:01]}  fxe5 {[%clk 0:00:46]} 18. fxe5 {[%clk 0:02:01]}  a5 {[%clk 0:00:25]} 19. Nc5 {[%clk 0:01:59]}  a4 {[%clk 0:00:16]} 20. Rb1 {[%clk 0:01:58]}  Rab8 {[%clk 0:00:09]} 21. Rxb8 {[%clk 0:01:50]}  Rxb8 {[%clk 0:00:10]} 22. Nxa4 {[%clk 0:01:50]}  Nxd4 {[%clk 0:00:06]} 23. cxd4 {[%clk 0:01:48]}  Qa5 {[%clk 0:00:06]} 24. Nc5 {[%clk 0:01:46]}  Rd8 {[%clk 0:00:03]} 25. a4 {[%clk 0:01:46]}  Qc3 {[%clk 0:00:02]} 26. Rf3 {[%clk 0:01:42]}  Qc4 {[%clk 0:00:01]} 27. Qd3 {[%clk 0:01:39]}  Qxd3 {[%clk 0:00:01]} 28. Rxd3 {[%clk 0:01:38]}  Bc8 {[%clk 0:00:02]} 29. Rb3 {[%clk 0:01:36]}  Rf8 {[%clk 0:00:02]} 30. Rb6 {[%clk 0:01:33]}  Kf7 {[%clk 0:00:01]} 31. Rxc6 {[%clk 0:01:33]}  Ke7 {[%clk 0:00:01]} 32. Rc7+ {[%clk 0:01:33]}  Kd8 {[%clk 0:00:01]} 33. Rxg7 {[%clk 0:01:33]} 1-0


[Site "https://www.chess.com"]